Cogmind - Beta 17.1 @@@ ROGUE MODE // 2026.08.29 @ 23:26:16 Player: Finn Result: Destroyed by G-47 Trooper with Particle Gun Performance ------------- Evolutions (2) 1000 Regions Visited (3) 600 Robots Destroyed (19) 95 Value Destroyed (582) 582 Prototype IDs (0) 0 Alien Tech Used (0) 0 Bonus (0) 0 TOTAL SCORE: 2277 Bonus ------- None Cogmind --------- Core Integrity 0/550 Matter 300/300 Energy 100/100 System Corruption 3% Temperature Cool (9) Movement Core (50) Location -8/Materials Parts ------- > --- POWER (1) -------- (None) > --- PROPULSION (4) --- (None) > --- UTILITY (4) ------ Advanced Targeting Computer > --- WEAPON (2) ------- (None) > --- INVENTORY (5) ---- (None) Peak State ------------ > --- POWER ------------ Improved Ion Engine > --- PROPULSION ------- Flight Unit Flight Unit Flight Unit > --- UTILITY ---------- Advanced Visual Processing Unit Advanced Targeting Computer > --- WEAPON ----------- Subdweller Laser Field Laser > --- INVENTORY -------- (None) [Rating: 16] Favorites ----------- Power Light Ion Engine Engine Light Ion Engine Power Core Light Nuclear Core Propulsion Armored Wheel Leg Aluminum Leg Wheel Armored Wheel Flight Unit Flight Unit Utility Visual Processing Unit Device ECM Suite Processor Visual Processing Unit Weapon Beam Rifle Energy Gun Beam Rifle Ballistic Gun Light Assault Rifle Build | -11 -10 -10 -8 ------- Run | Yrd Mat Sub Mat Slots Evolved 4 | . . . 4 Power . | . . . . Propulsion 2 | . . . 2 Utility 2 | . . . 2 Weapon . | . . . . Parts Attached 25 | 5 8 2 10 Power 4 | 1 1 . 2 Engine 3 | 1 1 . 1 Core 1 | . . . 1 Reactor . | . . . . Propulsion 9 | 2 3 . 4 Treads . | . . . . Leg 1 | . . . 1 Wheel 5 | 2 3 . . Hover . | . . . . Flight 3 | . . . 3 Utility 4 | . 2 . 2 Device 1 | . 1 . . Storage . | . . . . Processor 3 | . 1 . 2 Hackware . | . . . . Protection . | . . . . Artifact . | . . . . Weapon 8 | 2 2 2 2 Energy Gun 7 | 1 2 2 2 Energy Cannon . | . . . . Ballistic Gun 1 | 1 . . . Ballistic Cannon . | . . . . Launcher . | . . . . Special Weapon . | . . . . Impact Weapon . | . . . . Slashing Weapon . | . . . . Piercing Weapon . | . . . . Special Melee Weapon . | . . . . Unidentified Prototypes . | . . . . Parts Lost 12 | . 2 . 10 Power 3 | . 1 . 2 Propulsion 4 | . . . 4 Utility 1 | . . . 1 Weapon 4 | . 1 . 3 Highest Loss Streak 4 | . 2 . 4 To Critical Strikes . | . . . . Average Backups 2 | 1 3 4 . Power . | . . . . Propulsion 1 | . 2 3 . Utility . | . . . . Weapon . | . . 1 . Tool/Special . | . . . . Unused Backups 2 | . . . 2 Power . | . . . . Propulsion . | . . . . Utility . | . . . . Weapon 2 | . . . 2 Tool/Special . | . . . . Average Slot Usage (%) 82 | . 84 100 59 Engine 12 | . 14 14 8 Wheel 18 | . 28 28 . Flight 5 | . . . 17 Device 7 | . 6 14 . Processor 12 | . 8 14 14 Energy Gun 20 | . 12 28 15 Ballistic Gun 3 | . 12 . . Peak Build Rating 16 | 5 12 12 16 Average Rating 11 | 3 6 12 13 On Entrance 7 | . 5 12 12 Avg Prop Armor Cover (%) . | . . . . Naked Turns . | . . . . Heaviest Build 16 | 6 11 12 16 Greatest Support 26 | 26 26 24 24 Greatest Overweight (x) 3 | . . . 3 Average Overweight (x) . | . . . . Largest Inventory Capacity 5 | 5 5 5 5 Average Capacity 5 | 5 5 5 5 Most Carried 5 | 4 5 5 5 Average Carried 2 | 1 3 4 . Final Capacity 5 | 5 5 5 5 Final Carried 5 | 1 5 5 . Class Distribution -------------------- 80% | Mutant 19% | Scavenger-Mutant Dominant Class ---------------- Mutant | -10/Materials Mutant | -10/Subcaves Scavenger-Mutant | -8/Materials Resources | -11 -10 -10 -8 ----------- Run | Yrd Mat Sub Mat Matter Collected 467 | 250 92 20 105 Remotely . | . . . . Salvage Created 677 | . 241 151 285 Parts 35 | . 14 10 11 Haulers Intercepted . | . . . . Recyclers Shooed . | . . . . Parts Field Recycled . | . . . . Retrieved Matter . | . . . . Parts Self-Destructed 9 | . . 9 . Prevented . | . . . . Parts Restored . | . . . . Kills | -11 -10 -10 -8 ------- Run | Yrd Mat Sub Mat Combat Hostiles Destroyed 19 | . 7 6 6 Guns 18 | . 7 6 5 Classes Destroyed 4 | . 2 2 . Swarmer 7 | . 3 4 . Grunt 8 | . 4 . 4 Sentry 3 | . . 1 2 Subdweller 1 | . . 1 . Best Kill Streak 3 | . 3 3 2 Combat Bots Only 3 | . 3 3 2 Max Kills in Single Turn 2 | . 1 2 1 Gunslinging 1 | . . 1 . Exploded . | . . . . Melee . | . . . . Uniques/NPCs Destroyed . | . . . . Combat | -11 -10 -10 -8 -------- Run | Yrd Mat Sub Mat Hostile Shots Fired 156 | . 30 36 90 Missed 57 | . 11 19 27 Hits 99 | . 19 17 63 Projectile 99 | . 19 17 63 Critical Strikes 4 | . . 1 3 Damage Taken 1602 | . 241 258 1103 Core 766 | . 77 132 557 Absorbed by Shields . | . . . . Core Remaining (%) 58 | 100 . 16 . Volleys Fired 117 | . 22 60 35 Largest 2 | . 2 2 2 Hottest 123 | . 60 116 123 Shots Fired 205 | . 40 116 49 Gun 205 | . 40 116 49 Cannon . | . . . . Launcher . | . . . . Special . | . . . . Kinetic 22 | . 22 . . Thermal 165 | . . 116 49 Explosive . | . . . . Electromagnetic 18 | . 18 . . Robot Hit Streak 12 | . 4 12 11 Robot Miss Streak 4 | . 4 2 2 Penetration Max . | . . . . Secondary Targets 2 | . 1 1 . Max Gunslinging Chain 1 | . 1 1 . Shots Hit Robots 86 | . 23 24 39 Core Hits 35 | . 11 8 16 Critical Kills . | . . . . Critical Parts Destroyed . | . . . . Critical Strikes 4 | . 1 2 1 Burn 3 | . . 2 1 Corrupt 1 | . 1 . . Melee Attacks . | . . . . Impact . | . . . . Slashing . | . . . . Piercing . | . . . . Sneak Attacks . | . . . . Combat Hostiles . | . . . . Follow-up Attacks . | . . . . Damage Inflicted 1422 | . 251 398 773 Guns 1345 | . 246 398 701 Cannons . | . . . . Explosions . | . . . . Melee . | . . . . Ramming 77 | . 5 . 72 Kinetic 95 | . 95 . . Thermal 1099 | . . 398 701 Explosive . | . . . . Electromagnetic 151 | . 151 . . Impact . | . . . . Slashing . | . . . . Piercing . | . . . . Highest Corruption 3 | . . . 3 Average Corruption 3 | . . . 3 Corruption Purged . | . . . . Corruption Blocked . | . . . . Overload Shots . | . . . . Overflow Damage . | . . . . Projectiles . | . . . . Explosions . | . . . . Melee . | . . . . Knockbacks . | . . . . Impact . | . . . . Kinetic . | . . . . Secondary . | . . . . Self-Inflicted Damage 35 | . 2 . 33 Shots . | . . . . Rammed 21 | . 1 . 20 Targets Rammed 25 | . 1 . 24 Kicked 4 | . . . 4 Crushed . | . . . . Highest Temperature 425 | . 135 46 425 Average Temperature 119 | . 60 32 164 Received Heat Transfer 816 | . 129 84 603 Effects 7 | . . . 7 Shutdowns 2 | . . . 2 Energy Bleed 3 | . . . 3 Matter Decay 1 | . . . 1 Damage (minor) 1 | . . . 1 Siege Activations . | . . . . Martial Activations . | . . . . Shielding Activations . | . . . . Robots Disrupted . | . . . . Combat Hostiles . | . . . . Robots Corrupted . | . . . . Combat Hostiles . | . . . . Parts Fried 1 | . 1 . . Impact Corruptions . | . . . . Robots Melted 1 | . . . 1 Combat Hostiles 1 | . . . 1 Parts Melted 3 | . . . 3 Heat Transferred 2350 | . . 940 1410 Parts Sabotaged . | . . . . Parts Stolen . | . . . . Parts Stripped . | . . . . Power Chain Reactions . | . . . . Alert | -11 -10 -10 -8 ------- Run | Yrd Mat Sub Mat Maximum Alert Level . | . . . . Low Security (%) 100 | 100 100 . 100 Level 1 . | . . . . Level 2 . | . . . . Level 3 . | . . . . Level 4 . | . . . . Level 5 . | . . . . High Security . | . . . . Max Security . | . . . . Peak Influence 60 | . 60 . 32 Initial . | . . . . Average 7 | . 10 . 5 Influence Increases 436 | . 160 110 166 Destroy 0b10 Robot/C 360 | . 140 100 120 Destroy Leader 60 | . 20 10 30 Destroy Structure 1 | . . . 1 Partial Spotted 15 | . . . 15 Influence Decreases 436 | . 160 110 166 Time Decay 394 | . 140 110 144 Lost Part 42 | . 20 . 22 Squads Dispatched 2 | . 1 . 1 Investigation . | . . . . Extermination . | . . . . Reinforcement 2 | . 1 . 1 Assault . | . . . . Garrison . | . . . . Intercept . | . . . . Searches Triggered . | . . . . Construction Impeded . | . . . . Haulers Reinforced . | . . . . Active Scanning Responses . | . . . . Cargo Convoy Interrupts . | . . . . Stealth | -11 -10 -10 -8 --------- Run | Yrd Mat Sub Mat Distress Signals . | . . . . Communications Jammed . | . . . . Distress Signals . | . . . . Times Spotted 28 | . 7 10 11 Peak Tracking Total 3 | . 2 3 3 Tactical Retreats . | . . . . Traps | -11 -10 -10 -8 ------- Run | Yrd Mat Sub Mat Traps Triggered . | . . . . Indirectly . | . . . . Trap Hack Attempts . | . . . . Triggered . | . . . . Disarmed . | . . . . Reprogrammed . | . . . . Reused . | . . . . Traps Extracted . | . . . . Installed . | . . . . Triggered . | . . . . Machines | -11 -10 -10 -8 ---------- Run | Yrd Mat Sub Mat Machines Disabled . | . . . . Max in Single Turn . | . . . . Machines Repaired . | . . . . Machines Dismantled . | . . . . Machines Sabotaged . | . . . . Overloaded Fab Kills . | . . . . Hacking | -11 -10 -10 -8 --------- Run | Yrd Mat Sub Mat Machines Accessed 9 | . 5 2 2 Terminals 5 | . 4 . 1 Fabricators . | . . . . Repair Stations . | . . . . Recycling Units 1 | . 1 . . Scanalyzers 1 | . . . 1 Garrison Access . | . . . . Total Hacks 10 | . 5 3 2 Successful 10 | . 5 3 2 Failed . | . . . . Catastrophic . | . . . . Database Lockouts . | . . . . Manual . | . . . . Terminals 5 | . 4 . 1 Fabricators . | . . . . Repair Stations . | . . . . Recycling Units 1 | . 1 . . Scanalyzers 1 | . . . 1 Garrison Access . | . . . . Terminal Hacks 8 | . 4 3 1 Record 3 | . 2 1 . Open Door 1 | . . 1 . Locate Traps 2 | . 2 . . Zone Layout 1 | . . . 1 Release Object 1 | . . 1 . Fabricator Hacks . | . . . . Repair Station Hacks . | . . . . Recycling Unit Hacks 1 | . 1 . . Process 1 | . 1 . . Scanalyzer 1 | . . . 1 Retrieve Study 1 | . . . 1 Garrison Access Hacks . | . . . . Unauthorized Hacks . | . . . . Terminals . | . . . . Fabricators . | . . . . Repair Stations . | . . . . Recycling Units . | . . . . Scanalyzers . | . . . . Garrison Access . | . . . . Data Cores Recovered . | . . . . Used . | . . . . Hacking Detections 2 | . 2 . . Full Trace Events . | . . . . Feedback Events . | . . . . Feedback Blocked . | . . . . Robot Schematics Acquired . | . . . . Robots Built . | . . . . Authchips . | . . . . Time . | . . . . Total Robot Build Rating . | . . . . Part Schematics Acquired . | . . . . Parts Built . | . . . . Authchips . | . . . . Time . | . . . . Total Part Build Rating . | . . . . Part Studies Acquired 1 | . . . 1 Parts Repaired . | . . . . Time . | . . . . Parts Recycled . | . . . . Recycled Matter 27 | . 27 . . Retrieved Matter . | . . . . Retrieved Components . | . . . . Parts Scanalyzed . | . . . . Part Schematics Acquired . | . . . . Parts Damaged . | . . . . Bothacking | -11 -10 -10 -8 ------------ Run | Yrd Mat Sub Mat Used RIF Installer . | . . . . Robots Hacked . | . . . . Non-combat . | . . . . Combat . | . . . . Robot Hacks Applied . | . . . . Relay Couplers Released . | . . . . Fabnet Peak Effective % . | . . . . Robots Rewired . | . . . . Allies Hacked . | . . . . Hacks Repelled . | . . . . Allies | -11 -10 -10 -8 -------- Run | Yrd Mat Sub Mat Total Allies . | . . . . Largest Group . | . . . . Highest-Rated Group . | . . . . Highest-Rated Ally . | . . . . Total Orders . | . . . . Ally Attacks . | . . . . Total Damage . | . . . . Kills . | . . . . Allies Corrupted . | . . . . Allies Melted . | . . . . Intel | -11 -10 -10 -8 ------- Run | Yrd Mat Sub Mat Active Infowar (turns) 2334 | . 422 1073 839 Optics 2334 | . 422 1073 839 ECM 1450 | . 314 1073 63 Robot Analysis Total . | . . . . Derelict Logs Recovered . | . . . . Drone Launches . | . . . . Drone Recoveries . | . . . . Exploration | -11 -10 -10 -8 ------------- Run | Yrd Mat Sub Mat Turns Passed 2609 | 42 650 1073 844 Spaces Moved 1886 | 41 644 774 427 Core 51 | 15 . . 36 Treads . | . . . . Legs 67 | . . . 67 Wheels 1449 | 26 644 774 5 Hover . | . . . . Flight 319 | . . . 319 Fastest Speed 34 | 50 80 90 34 Average Speed 81 | 75 81 90 67 Slowest Speed 200 | 90 90 90 200 Overloaded Moves . | . . . . Propulsion Burnouts . | . . . . Robots Hopped . | . . . . Potential Cave-ins . | . . . . Cave-ins Triggered . | . . . . Exploration Rate (%) 32 | 4 65 38 22 Regions Visited 3 Branch Regions 1 Pre-discovered Areas 1 | . . 1 . Known Exits Taken . | . . . . Unknown Exits Taken 3 | 1 1 1 . Scrap Searched 3 | . . 3 . Spaces Dug . | . . . . Terrain Destroyed . | . . . . Melee . | . . . . Projectile . | . . . . AOE . | . . . . Terrain Rammed . | . . . . Walls Destroyed . | . . . . Machines Disabled . | . . . . Actions | -11 -10 -10 -8 --------- Run | Yrd Mat Sub Mat Total 2757 | 51 735 1035 936 Wait 665 | . 51 188 426 Move 1883 | 40 643 773 427 Hop . | . . . . Pick Up 25 | 6 8 4 7 Fast Attach . | . . . . Attach 16 | 5 4 . 7 Detach . | . . . . Swap 9 | . 4 2 3 Drop 14 | . 2 5 7 Fire 117 | . 22 60 35 Melee . | . . . . Ram 21 | . 1 . 20 Kick 4 | . . . 4 Crush . | . . . . Escape Stasis . | . . . . Rewire 3 | . . 3 . Trap . | . . . . Miscellaneous . | . . . . Route ------- -11/Scrapyard -10/Materials (discovered 4 exits: [*Mat] / [*Min x2] / *Sub) -10/Subcaves (discovered 2 exits: *Mat / [Scr]) -8/Materials History --------- Turn | Location | Event 8 | -11/Scrapyard | Discovered new exit (range 16) 43 | -11/Scrapyard | Entered Materials 44 | -10/Materials | Met a group of wandering Federalists 104 | -10/Materials | Discovered new exit (range 12) 163 | -10/Materials | Discovered new exit (range 9) 169 | -10/Materials | Discovered new exit (range 8) 311 | -10/Materials | Build established: Mutant 600 | -10/Materials | Discovered new exit (range 16) 693 | -10/Materials | Entered Subcaves 694 | -10/Subcaves | Continued accompanying wandering Federalists (6) 694 | -10/Subcaves | Approached by a straggling Scientist 722 | -10/Subcaves | A swath of the cavern ceiling suddenly collapsed 884 | -10/Subcaves | Discovered new exit (range 8) 886 | -10/Subcaves | Learned location of Zion (-6) 886 | -10/Subcaves | Met a Zionite searching for "candidates" 958 | -10/Subcaves | Curiously followed by a Cobbler waking with a query about "LVR3C" 1068 | -10/Subcaves | Shifting Twisted Machinery released Flamer 1079 | -10/Subcaves | Shifting Twisted Machinery released Ripper 1234 | -10/Subcaves | Core integrity fell below 50% 1318 | -10/Subcaves | Core integrity fell below 20% 1408 | -10/Subcaves | A swath of the cavern ceiling suddenly collapsed 1766 | -10/Subcaves | Entered Materials 1766 | -8/Materials | Evolved 4 slots: Propulsion x2, Utility x2 2108 | -8/Materials | Build established: Scavenger-Mutant 2369 | -8/Materials | Lost 4 parts (3n1w) 2554 | -8/Materials | Core integrity fell below 50% 2582 | -8/Materials | Lost 4 parts (1p1n2w) 2603 | -8/Materials | Core integrity fell below 20% 2610 | -8/Materials | Destroyed by G-47 Trooper with Particle Gun Last Messages --------------- 02551_ Aluminum Leg destroyed. 02552_ Slammed into G-50 Soldier. 02552_ Destabilizing: Core damaged (-22). 02561_ Acquired Lgt. Nuclear Core. 02575_ M-28 Smith repairs G-50 Soldier. 02590_ Lgt. Nuclear Core destroyed. 02591_ Slammed into G-47 Trooper. 02591_ Destabilizing: System interference. 02591_ Adv. Targeting Computer temporarily disabled. 02592_ Slammed into G-47 Trooper. 02602_ Destabilizing: Core damaged (-11). 02603_ Slammed into G-47 Trooper. 02605_ Destabilizing: System interference. 02605_ Adv. Visual Processing Unit temporarily disabled. 02606_ Slammed into G-47 Trooper. 02606_ Adv. Visual Processing Unit destroyed. 02606_ System corrupted by crushing effect (+3). 02607_ Slammed into G-47 Trooper. Map ----- +----------------------------------------------------+ | | | | | | | | | | | | | | | | | | | | | | | | | | | ?????????????????????????????????????????????????? | | ?????????????????????????????????????????????????? | | ?????????????????????????????????????????????????? | | ????????#####################????????????????????? | | ##??????# =%[% # #????????????????????? | | #??#####+#####% # """ #????????????????????? | | #### # # """ # ?????????????????? | | # # """ # # """ # ?????????????????? | | # #""""" # # %%%% # ?????????????????? | | + #""""" # # """%% # ?????????????????? | | # #""""" + # """ m%%# ?????????????????? | | # # """ # + """ gg!# ?????????????????? | | # # # # %@%%# ?????????????????? | | # # ] # ########## ?????????????????? | | ## ##+######## ############+?????????????????? | | ?# ?????????????????? | | ?# % ?????????????????? | | ####### ############+##########?????????????????? | | ! # #???###### #?????????????????????? | | + ##### / # """ #?????????????????????? | | [[[ # # """ #?????????????????????? | | [[[ # ! T # """ #?????????????????????? | | [[[ #####+## # #?????????????????????? | | ## ## # """ #?????????????????????? | | ######## """ ## # """ #?????????????????????? | | ???????# """ ## # """ #?????????????????????? | | ???????# """ ## # #?????????????????????? | | ???????# ## ##########?????????????????????? | | ????########### #??????????????????????????????? | | ????# ## #??????????????????????????????? | | ????# ## ##########?????????????????????? | | ????# *! ## # """ #?????????????????????? | | ????# *[ ## # "T" #?????????????????????? | | ????# ## # #?????????????????????? | | ????# ## # #?????????????????????? | | ????# ## + #?????????????????????? | | ????# !## # """ ####??????????????????? | +----------------------------------------------------+ Best States ------------- Heat Dissipation 31 Energy Generation 14 Energy Capacity 265 Matter Stores 300 Matter Capacity 300 Sight Range 20 Terrain Scan Density 10 ECM Strength 1 Evasion (%) 63 Targeting Accuracy 8 Item Schematics ----------------- None Robot Schematics ------------------ None Fabricated ------------ Nothing Repaired ---------- Nothing Studied --------- Flight Unit | -8/Materials | Hacked Alien Tech Used ----------------- None Achievements -------------- Strength In Numbers Challenges ------------ None Game ------ Seed MiningRocketPerforator Manual? 0 Play Time 00:24:38 Cumulative 19.6 hours Start 2026.08.29 @ 23:03:37 End 2026.08.29 @ 23:26:16 Sessions 1 Manual Loads 0 Difficulty Rogue Special Mode None Game No. 41 Rogue 24 Adventurer 15 Explorer 2 Win Type - Total 0 Types 0/0/0/0/0/0/0/0/0/0 Lore% 20 Gallery% 19 Achievement% 16 Wizard Run 0 Options --------- Layout 1 ASCII 0 Keyboard 0 Movement Mouse Keybinds 0 Fullscreen 1 Font 24/Smallcaps Map View 50x35 Zoom Use 0% Tactical HUD 1 Map Filters NONE Filters NONE Steam 1 RUN: d79f994f-99a7-4295-859f-5feed1eff22a